bitfinex/quotes_ETHUSD_20260207
["timestamp","ask_amount","ask_price","bid_price","bid_amount"]
[1770490385124,1.07656313,2111.5,2110.1,4.73897346]
[1770490385947,1.07656313,2111.5,2110.2,0.02893239]
[1770490386138,1.07656313,2111.5,2110.1,4.73897346]
[1770490386961,1.07856313,2111.5,2110.1,4.73897346]
[1770490387133,1.18404849,2111.4,2110.2,0.02893239]
[1770490387335,1.18602851,2111.5,2110.2,0.55321444]
[1770490387553,2.24920067,2111.5,2110.2,0.52428205]
[1770490387734,1.06317216,2111.4,2109.9,1.18484955]
[1770490389269,1.06317216,2111.4,2109.8,4.73956111]
[1770490389270,1.06317216,2111.2,2109.8,4.73956111]
[1770490390165,1.06317216,2111.2,2109.8,1.18494644]
[1770490390334,1.06317216,2111.2,2110.0,0.437914]
[1770490391855,1.09234895,2111.0,2110.0,0.437914]
[1770490392165,1.09234895,2111.0,2110.0,1.62274732]
[1770490392575,1.18421675,2111.1,2110.1,0.52942648]
[1770490393773,1.18410458,2111.3,2110.2,1.18472182]
[1770490393978,2.27645353,2111.3,2110.2,1.18472182]
[1770490394182,1.09234895,2111.2,2110.2,1.18472182]
[1770490394846,1.09234895,2111.2,2110.0,0.437914]
[1770490395963,1.09234895,2111.0,2110.0,1.62273559]
[1770490396566,1.09234895,2111.0,2110.0,1.62273909]
[1770490397067,1.18421675,2111.1,2110.0,2.15495051]
[1770490397370,2.2765657,2111.1,2110.0,1.62273909]
[1770490397565,1.18421675,2111.1,2110.0,2.15561731]
[1770490397771,2.2765657,2111.1,2110.0,1.62273909]
[1770490397972,1.09234895,2111.0,2110.0,1.62273909]
[1770490398945,1.09234895,2111.0,2110.0,1.62273106]
[1770490399269,1.09234895,2111.4,2110.0,1.62273106]
[1770490399647,1.09234895,2111.4,2110.2,0.001]
[1770490400574,1.09234895,2111.2,2110.2,0.001]
[1770490401074,1.09234895,2111.2,2109.6,0.02893239]
[1770490401075,1.09234895,2111.0,2109.1,0.02993239]
[1770490401274,1.09234895,2110.6,2109.2,1.18524514]
[1770490401474,1.09234895,2110.6,2109.2,1.18528242]
[1770490401677,1.09234895,2110.6,2109.2,1.18524139]
[1770490402251,1.19474895,2110.9,2109.4,1.18516722]
[1770490402482,1.09234895,2110.7,2109.3,1.18518376]
[1770490402678,1.19474895,2110.7,2109.3,1.18518376]
[1770490404155,1.19474895,2110.7,2109.2,1.72077535]
[1770490404370,1.19474895,2110.7,2109.3,0.53680127]
[1770490404572,1.19474895,2110.7,2109.1,4.74234744]
[1770490404573,1.18449729,2110.6,2109.1,4.74234744]
[1770490404880,1.09234895,2110.5,2109.3,0.56635091]
[1770490405092,1.18449729,2110.6,2109.3,0.56635091]
[1770490405254,2.27684624,2110.6,2109.3,0.56635091]
[1770490405772,1.09234895,2110.5,2109.1,5.2803762]
[1770490406581,1.09234895,2110.5,2109.1,4.74234744]
[1770490406789,1.09234895,2110.3,2109.1,0.001]
[1770490407291,1.09234895,2110.3,2109.1,0.53966635]
[1770490408461,1.18460955,2110.4,2109.1,0.53966635]
[1770490408787,1.09234895,2110.4,2109.2,1.18528351]
[1770490409154,1.09234895,2110.4,2109.1,1.18630441]
[1770490409355,0.02893239,2110.9,2109.1,0.001]
[1770490409356,1.09234895,2110.2,2109.1,0.001]
[1770490410681,1.22368134,2110.6,2109.2,0.54105264]
[1770490410853,1.09234895,2110.4,2109.1,1.18631232]
[1770490411260,1.18455342,2110.5,2109.1,0.001]
[1770490411261,1.09234895,2110.1,2109.1,0.001]
[1770490411569,1.09234895,2110.4,2109.2,1.18525012]
[1770490411889,1.09234895,2110.4,2109.1,1.18630693]
[1770490412565,1.09234895,2110.4,2109.1,1.18630802]
[1770490412769,1.18466568,2110.3,2109.2,1.18526247]
[1770490413085,1.18466568,2110.3,2109.3,0.001]
[1770490413290,2.27701463,2110.3,2109.3,0.001]
[1770490413887,1.18466568,2110.3,2109.3,0.54374403]
[1770490414284,1.18463974,2110.4,2109.3,0.54374403]
[1770490414689,1.18463974,2110.4,2109.5,0.54328658]
[1770490414986,4.73767689,2110.8,2109.7,0.54328658]
[1770490415381,5.83002584,2110.8,2109.6,1.18505877]
[1770490415570,1.08610377,2110.7,2109.5,1.18508616]
[1770490417193,1.18449729,2110.6,2109.5,0.53596108]
[1770490417701,1.08610377,2110.5,2109.3,0.001]
[1770490417904,1.11503616,2110.5,2109.3,0.001]
[1770490418670,1.08610377,2110.1,2109.3,0.001]
[1770490419102,1.11503616,2109.7,2109.0,0.001]
[1770490419402,1.08610377,2109.3,2107.5,0.53221656]
[1770490419602,1.08610377,2109.0,2107.6,1.18618167]
[1770490420700,1.08610377,2109.0,2107.7,1.18611781]
[1770490421074,1.08610377,2108.8,2107.5,1.18720559]
[1770490421275,1.08610377,2108.8,2107.5,0.001]
[1770490421577,1.11503616,2108.8,2107.5,0.001]
[1770490422874,0.94,2108.7,2107.5,1.70928038]
[1770490423075,1.18562079,2108.6,2107.5,0.52305016]
[1770490423273,1.18562079,2108.6,2107.5,0.001]
[1770490423774,2.1256069,2108.7,2107.6,0.51982398]
[1770490423998,1.1856069,2108.7,2107.6,0.51982398]
[1770490424501,1.1856069,2108.7,2107.5,1.18722039]
[1770490425608,5.82821718,2108.8,2107.5,0.001]
[1770490425905,1.08610377,2108.8,2107.7,0.001]
[1770490427790,2.27166833,2108.7,2107.7,0.001]
[1770490429321,1.08610377,2108.6,2107.7,0.001]
[1770490430079,1.18567702,2108.5,2107.7,0.001]
[1770490432805,1.08610377,2110.0,2107.9,0.50090448]
[1770490432996,1.08610377,2109.4,2107.9,0.50090448]
[1770490433507,1.08610377,2109.4,2107.8,0.50090448]
[1770490434601,2.27133109,2109.3,2107.9,1.68297517]
[1770490435111,1.08610377,2109.2,2107.9,1.68297517]
[1770490436011,1.11503616,2109.2,2107.9,1.18601451]
[1770490436211,1.08610377,2108.8,2107.7,0.001]
[1770490436787,1.08610377,2108.6,2107.7,0.001]
[1770490438916,1.08610377,2108.4,2107.9,0.001]
[1770490439122,1.08610377,2108.4,2107.7,0.001]
[1770490439421,1.18567702,2108.5,2107.7,0.4903412]
[1770490439593,1.18567702,2108.5,2107.7,0.001]
[1770490440223,1.08610377,2108.4,2107.7,0.001]
[1770490440738,1.18545213,2108.9,2107.7,0.48666149]
[1770490440921,1.08810377,2109.0,2107.8,1.18607078]
[1770490441636,1.08610377,2108.8,2107.7,1.18712424]
[1770490441792,0.02893239,2108.9,2106.8,0.001]
[1770490441793,1.08610377,2107.9,2106.8,0.001]
[1770490442294,0.02893239,2107.6,2106.8,0.001]
[1770490442495,1.08610377,2107.7,2106.8,0.001]
[1770490442695,1.08610377,2107.6,2106.8,0.001]
[1770490442905,1.08610377,2107.4,2106.8,0.001]
[1770490445432,1.08610377,2107.4,2105.3,4.74990867]
[1770490445433,1.07691631,2107.0,2105.3,4.74990867]
[1770490445723,1.1863522,2107.3,2105.5,1.18736642]
[1770490445724,0.24742055,2105.9,2105.5,1.18736642]
[1770490445913,1.07691631,2107.1,2106.0,0.02893239]
[1770490446518,0.94,2106.7,2106.0,0.02893239]
[1770490446924,1.07691631,2106.9,2105.4,0.02893239]
[1770490447121,1.07691631,2106.6,2105.5,0.02893239]
[1770490447331,1.07691631,2106.6,2105.4,0.02893239]
[1770490447504,2.26371906,2106.5,2105.4,0.02893239]
[1770490448540,2.26371906,2106.5,2105.7,0.02893239]
[1770490448737,1.18680275,2106.5,2105.7,0.02893239]
[1770490449052,1.18669008,2106.7,2106.0,0.02893239]
[1770490449215,1.18657743,2106.9,2106.0,0.02893239]
[1770490449537,5.82322605,2107.1,2106.0,0.02893239]
[1770490449738,5.82322605,2107.1,2105.2,4.74969127]
[1770490449739,1.07691631,2106.5,2105.8,0.02893239]
[1770490449925,4.74630974,2107.1,2105.5,1.18732871]
[1770490449926,1.07691631,2106.9,2105.5,1.18732871]
[1770490450101,1.07691631,2106.9,2105.4,1.18737022]
[1770490450300,1.07691631,2106.9,2105.5,1.21629113]
[1770490450750,1.07691631,2106.5,2105.1,1.1875494]
[1770490450911,1.07691631,2106.5,2105.1,1.18756929]
[1770490451112,1.07691631,2106.5,2105.1,0.02893239]
[1770490451313,1.07691631,2106.5,2105.1,1.21649642]
[1770490451533,1.07691631,2106.3,2105.1,1.21649642]
[1770490452111,1.07691631,2106.3,2105.1,0.02893239]
[1770490452304,1.07691631,2106.3,2105.1,1.21652326]
[1770490452511,1.07691631,2106.3,2105.0,1.18860791]
[1770490453037,1.07691631,2106.3,2105.1,1.21651027]
[1770490453202,1.07691631,2106.3,2105.0,1.18860616]
[1770490453410,1.07691631,2106.3,2105.0,0.001]
[1770490453628,1.07691631,2106.1,2105.0,0.001]
[1770490454907,1.07691631,2105.9,2105.0,0.001]
[1770490455650,2.26411357,2105.8,2105.0,0.001]
[1770490455806,1.07691631,2105.3,2104.5,0.001]
[1770490456012,1.07691631,2105.3,2103.9,0.001]
[1770490456013,1.07691631,2104.5,2103.9,0.001]
[1770490456728,1.07691631,2104.5,2103.8,0.001]
[1770490456913,1.07691631,2104.5,2103.5,0.001]
[1770490457126,1.07691631,2104.9,2103.5,0.001]
[1770490457308,1.07691631,2104.8,2103.5,0.001]
[1770490457508,1.07691631,2104.4,2103.5,0.001]
[1770490459608,1.18804352,2104.3,2103.5,0.001]
[1770490459808,2.26495983,2104.3,2103.5,0.001]
[1770490461264,5.82841271,2104.7,2103.5,0.001]
[1770490461551,5.82841271,2104.7,2103.6,0.02893239]
[1770490461552,1.18787418,2104.6,2103.6,0.02893239]
[1770490461956,4.75082923,2104.9,2103.7,1.18838237]
[1770490462194,2.26456476,2105.0,2103.7,1.18838237]
[1770490462988,2.26456476,2105.0,2103.9,0.02893239]
[1770490463188,1.18747921,2105.3,2103.9,0.02893239]
[1770490463562,4.74941218,2105.6,2104.2,0.02893239]
[1770490464088,4.74882482,2105.8,2104.2,0.02893239]
[1770490464292,1.07691631,2105.6,2104.3,1.18804352]
[1770490464787,0.002,2104.7,2104.0,1.18820811]
[1770490464998,0.002,2104.7,2104.2,1.18806357]
[1770490465767,0.002,2104.7,2104.1,1.18811868]
[1770490465955,0.002,2104.7,2104.2,1.18809591]
[1770490466158,0.002,2104.7,2104.2,1.18809854]
[1770490466355,0.002,2104.7,2104.0,4.75278826]
[1770490470566,0.002,2104.9,2104.5,0.02893239]
[1770490470764,0.002,2104.9,2104.6,1.18787418]
[1770490471591,0.002,2104.9,2104.5,1.18792351]
[1770490471991,0.002,2104.9,2104.3,1.1880129]
[1770490472290,0.002,2104.9,2104.4,1.18797975]
[1770490473164,0.002,2104.9,2104.1,1.18815645]
[1770490475162,0.002,2104.9,2104.1,0.02893239]
[1770490476552,1.07891631,2104.9,2103.9,0.001]
[1770490477182,0.002,2104.7,2103.9,0.001]
[1770490477383,1.07891631,2104.7,2103.6,1.18940466]
[1770490477786,1.07891631,2104.7,2103.6,0.001]
[1770490477988,1.07891631,2104.7,2103.6,1.18943796]
[1770490478158,1.07891631,2104.7,2103.6,0.001]
[1770490478687,0.002,2104.7,2103.6,1.18943181]
[1770490479590,0.002,2104.7,2103.6,0.02993239]
[1770490479891,1.07891631,2104.7,2103.6,0.02993239]
[1770490481390,0.002,2104.7,2103.6,0.02993239]
[1770490481759,0.002,2104.7,2103.9,0.02893239]
[1770490483688,0.002,2104.7,2103.7,1.18838237]
[1770490484069,0.002,2104.7,2103.9,0.02893239]
[1770490484687,0.002,2104.7,2103.7,1.18838237]
[1770490485193,0.002,2104.7,2103.9,0.02893239]
[1770490485799,0.002,2104.7,2104.0,1.18821292]
[1770490486983,0.002,2104.7,2104.1,0.03509139]
[1770490488282,1.07691631,2104.6,2103.6,0.001]
[1770490488463,1.07691631,2104.6,2103.6,4.7547242]
[1770490488668,1.07691631,2104.6,2103.6,2.623]
[1770490488904,1.07691631,2104.6,2104.1,0.001]
[1770490489209,1.07691631,2104.4,2103.8,2.624]
[1770490489362,1.07691631,2104.4,2103.9,0.001]
[1770490490483,2.26495983,2104.3,2103.8,2.625]
[1770490490798,1.18997185,2104.5,2103.8,2.625]
[1770490491187,0.002,2104.5,2104.1,0.02893239]
[1770490492395,0.002,2104.5,2104.2,2.626]
[1770490492896,0.002,2104.5,2103.8,1.18829851]
[1770490493068,1.07891631,2104.5,2103.7,1.21730236]
[1770490493270,1.07891631,2104.5,2103.9,2.626]
[1770490494295,0.002,2104.5,2103.9,2.626]
[1770490495491,0.002,2104.5,2103.9,3.81426259]
[1770490495878,0.002,2104.5,2104.0,2.635]
[1770490496800,0.002,2104.5,2103.8,1.18830534]
[1770490497010,0.002,2104.5,2103.9,2.638]
[1770490497193,0.002,2104.5,2104.0,2.638]
[1770490497772,0.002,2104.5,2104.1,0.02893239]
[1770490498178,0.002,2104.5,2104.2,2.642]
[1770490498376,0.002,2104.5,2104.3,2.643]
[1770490499072,0.002,2104.5,2104.1,2.645]
[1770490499906,0.002,2104.5,2103.7,1.21727309]
[1770490500109,0.002,2104.5,2104.1,2.647]
[1770490500406,0.002,2104.5,2103.7,1.21727309]
[1770490500617,1.07691631,2104.4,2103.6,0.001]
[1770490500910,1.07691631,2104.2,2103.2,0.001]
[1770490501107,1.07691631,2104.0,2102.9,0.001]
[1770490501791,1.07691631,2104.0,2103.9,0.001]
[1770490501995,1.07691631,2103.9,2102.9,0.001]
[1770490502189,1.07691631,2103.8,2102.9,0.001]
[1770490503293,1.07691631,2103.6,2102.9,0.001]
[1770490504719,1.07691631,2103.6,2102.7,0.001]
[1770490505316,1.07691631,2103.4,2102.7,0.001]
[1770490507715,1.07691631,2103.2,2102.6,0.001]
[1770490507913,1.07691631,2103.2,2102.3,1.18916338]
[1770490508790,1.07691631,2103.2,2101.6,0.24781232]
[1770490508987,0.96650964,2102.8,2101.7,1.18947187]
[1770490509217,0.96650964,2102.8,2101.7,1.18948529]
[1770490509401,0.96650964,2102.8,2101.2,0.02893239]
[1770490509605,0.96650964,2102.8,2101.8,1.18945608]
[1770490509815,1.18894754,2102.7,2101.9,1.18940006]
[1770490511316,1.18894754,2102.7,2101.8,1.18941438]
[1770490511708,1.188891,2102.8,2101.8,1.21834677]
[1770490512014,1.188891,2102.8,2101.9,0.98221069]
[1770490512202,1.18887701,2102.9,2101.9,0.98221069]
[1770490513102,2.19959354,2102.9,2101.8,1.18941438]
[1770490513309,1.01071653,2102.8,2101.8,1.18941438]
[1770490513524,1.01071653,2102.8,2101.7,1.18947469]
[1770490513697,1.01071653,2102.8,2102.1,0.001]
[1770490513895,2.19966407,2102.7,2102.1,0.001]
[1770490516825,1.18894754,2102.7,2102.1,0.001]
[1770490517025,1.01071653,2102.6,2102.1,0.001]
[1770490518222,1.01071653,2102.6,2101.9,0.001]
[1770490518529,1.01071653,2102.4,2101.4,1.18968306]
[1770490519029,2.19989029,2102.3,2101.1,4.75939651]
[1770490519405,1.18917376,2102.3,2101.1,4.75939651]
[1770490519711,1.01071653,2102.2,2101.1,2.17206362]
[1770490520811,1.18915291,2102.4,2101.4,0.98221069]
[1770490521028,2.19943794,2103.1,2101.6,0.98221069]
[1770490521218,1.11311653,2103.0,2101.6,0.98221069]
[1770490521610,1.11311653,2103.0,2101.5,1.18962645]
[1770490521810,1.11311653,2103.0,2101.5,2.17183714]
[1770490522006,1.11311653,2103.0,2101.6,0.98221069]
[1770490522224,1.11311653,2103.0,2101.5,1.18962645]
[1770490522621,1.11311653,2103.0,2101.5,2.17183714]
[1770490523018,2.19955099,2102.9,2101.6,0.98221069]
[1770490523206,1.01071653,2102.8,2101.6,0.98221069]
[1770490523626,1.01071653,2102.8,2101.5,1.18962645]
[1770490523801,1.04580807,2102.7,2101.5,1.18962645]
[1770490524003,1.01071653,2102.7,2101.5,1.18962645]
[1770490525199,1.01071653,2102.5,2101.4,1.18968306]
[1770490526406,1.01071653,2102.5,2101.7,0.001]
[1770490527318,1.18911719,2102.4,2101.7,0.001]
[1770490528637,1.01071653,2102.3,2101.7,0.001]
[1770490529320,1.01071653,2102.0,2101.5,0.001]
[1770490529522,1.1892869,2102.1,2101.5,0.001]
[1770490529823,1.01071653,2102.3,2101.5,0.001]
[1770490530028,2.19992844,2102.3,2101.5,0.001]
[1770490532121,1.01071653,2102.2,2101.5,0.001]
[1770490535040,2.20000343,2102.1,2101.5,0.001]
[1770490535618,1.00105716,2102.0,2101.5,0.001]
[1770490537053,1.18940006,2101.9,2101.5,0.001]
[1770490537419,1.00105716,2101.8,2101.0,0.001]
[1770490537634,1.00105716,2101.8,2100.6,0.001]
[1770490537918,1.00105716,2101.8,2100.7,1.19007706]
[1770490538243,1.00105716,2101.8,2100.6,1.19110068]
[1770490538542,1.00105716,2101.8,2100.6,4.76140948]
[1770490538723,1.00105716,2101.8,2100.8,1.19001705]
[1770490538920,1.00105716,2101.8,2100.7,1.19007653]
[1770490539147,1.00105716,2101.6,2100.6,0.001]
[1770490540029,1.00105716,2101.6,2101.5,0.001]
[1770490540326,1.00105716,2101.6,2100.6,0.001]
[1770490540949,1.00105716,2101.4,2100.3,1.19027012]
[1770490541120,1.00105716,2101.1,2100.2,1.19031949]
[1770490541517,1.00105716,2101.1,2100.1,1.32954773]
[1770490541742,1.00105716,2101.1,2100.1,0.1391465]
[1770490542640,1.02998955,2100.9,2099.7,1.19061756]
[1770490542819,1.02998955,2100.9,2099.5,4.76295104]
[1770490543021,1.00105716,2100.5,2099.2,1.19092987]
[1770490544230,1.19002284,2100.8,2099.3,0.99601295]
[1770490544549,1.00105716,2100.7,2099.3,0.99601295]
[1770490544940,1.19002284,2100.8,2099.3,0.99601295]
[1770490544941,1.00105716,2100.6,2099.3,0.99601295]
[1770490545143,1.19002284,2100.8,2099.5,0.99611153]
[1770490545448,1.00105716,2100.7,2099.4,1.19081642]
[1770490547355,2.19119331,2100.6,2099.3,5.75957144]
[1770490547548,1.19013615,2100.6,2099.4,0.99640001]
[1770490548132,1.00105716,2100.5,2099.4,0.99640001]
[1770490548940,1.00105716,2100.5,2099.3,4.76326569]
[1770490549639,1.00105716,2100.3,2099.1,1.19095536]
[1770490550950,1.00105716,2100.3,2099.0,0.99658878]
[1770490551159,1.00105716,2100.3,2099.0,4.76394645]
[1770490551330,1.19024947,2100.4,2099.2,0.99668242]
[1770490551526,1.00105716,2100.1,2099.0,1.19104335]
[1770490551732,1.00105716,2100.1,2098.9,1.19106383]
[1770490551927,1.00105716,2100.1,2098.9,1.19109085]
[1770490552261,1.00105716,2100.1,2099.4,0.001]
[1770490552459,1.00105716,2100.1,2098.8,4.76456579]
[1770490552460,1.00105716,2100.1,2098.8,1.19112309]
[1770490552627,1.21929521,2100.2,2098.9,1.19106816]
[1770490552628,1.00105716,2099.8,2098.9,1.19106816]
[1770490553346,1.19036282,2100.2,2099.0,0.99790894]
[1770490553539,2.19141998,2100.2,2099.1,1.19098661]
[1770490553742,1.19036282,2100.2,2099.1,2.1889891]
[1770490553968,0.1024,2100.6,2099.2,0.99800249]
[1770490553969,2.19119331,2100.6,2099.2,0.99800249]
[1770490554132,1.00105716,2100.5,2099.2,0.99800249]
[1770490554659,1.02998955,2100.5,2099.1,1.19098661]
[1770490555664,1.00105716,2100.3,2099.0,4.76396583]
[1770490555833,1.00105716,2100.1,2099.0,4.76396583]
[1770490556160,1.0361487,2100.0,2099.0,4.76396583]
[1770490556956,1.00105716,2100.0,2099.0,1.19104335]
[1770490557341,6.78361649,2100.3,2099.0,2.18935388]
[1770490557556,1.00105716,2100.2,2099.0,2.18935388]
[1770490557746,2.19147666,2100.1,2099.0,2.18935388]
[1770490558264,1.00105716,2098.9,2098.5,0.001]
[1770490558468,1.00105716,2098.5,2096.6,0.02893239]
[1770490558646,1.00105716,2098.9,2097.6,0.99852571]
[1770490559565,1.00105716,2098.9,2097.0,0.99861662]
[1770490559748,1.19115685,2098.8,2097.3,2.19062539]
[1770490560081,1.00105716,2098.7,2097.3,1.19200877]
[1770490560232,1.00105716,2098.2,2097.2,1.19202626]
[1770490560560,4.79355979,2098.9,2097.2,1.19202626]
[1770490560561,1.19113284,2098.9,2097.3,0.99870665]
[1770490560755,1.00105716,2098.8,2097.2,1.19202626]
[1770490560952,0.80105716,2098.8,2097.2,2.22051729]
[1770490561157,1.00105716,2098.4,2097.2,1.19202626]
[1770490561334,1.00105716,2098.8,2097.2,1.19202626]
[1770490561535,1.00105716,2098.8,2097.2,2.22051729]
[1770490561735,1.19117963,2098.8,2097.5,1.02849103]
[1770490562160,1.19113763,2098.9,2097.5,1.02849103]
[1770490563848,4.76423472,2099.0,2097.6,1.19183829]
[1770490563849,1.00105716,2099.0,2097.6,1.19183829]
[1770490564842,1.00105716,2099.0,2097.7,0.001]
[1770490565970,1.1911001,2098.9,2097.7,0.001]
[1770490566143,1.03738636,2098.8,2097.7,0.001]
[1770490566640,5.36091839,2098.5,2097.5,0.001]
[1770490566964,0.1024,2098.7,2097.5,1.1918849]
[1770490567170,1.06631875,2098.6,2097.4,1.19190997]
[1770490567361,1.03738636,2098.6,2097.4,1.19191481]
[1770490567762,1.03738636,2098.6,2097.5,1.19188027]
[1770490568076,4.86748148,2098.8,2097.3,0.95265585]
[1770490568642,5.90486784,2098.8,2097.3,0.95265585]
[1770490568864,5.93380023,2098.8,2097.3,0.95265585]
[1770490569054,1.19115685,2098.8,2097.3,0.95265585]
[1770490570068,1.03738636,2098.9,2097.5,0.95265585]
[1770490570568,1.0724779,2098.8,2097.4,1.19195194]
[1770490570881,1.03738636,2098.8,2097.4,1.19195194]
[1770490572068,1.00844276,2098.6,2097.3,4.76780776]
[1770490572292,1.0435343,2098.5,2097.2,1.19203381]
[1770490572445,5.36091839,2098.6,2097.3,0.94730524]
[1770490572643,2.19965636,2098.7,2097.3,0.94730524]
[1770490572845,1.00844276,2098.6,2097.3,0.94730524]
[1770490573042,1.0435343,2098.5,2097.2,1.19203381]
[1770490573267,1.00844276,2098.5,2097.2,1.19203381]
[1770490573467,1.00844276,2098.3,2097.2,1.19203381]
[1770490574049,1.2936136,2098.7,2097.4,2.13925718]
[1770490574050,1.19127037,2098.7,2097.4,2.13925718]
[1770490574264,0.03509154,2098.6,2097.4,1.19195194]
[1770490574445,1.00844276,2098.6,2097.4,1.19195194]
[1770490575779,1.19127037,2098.7,2097.5,0.94730524]
[1770490576183,4.76485443,2098.8,2097.5,0.94730524]
[1770490576184,1.19115685,2098.8,2097.7,0.94730524]
[1770490577289,2.19957044,2098.9,2097.7,0.94730524]
[1770490578057,0.002,2098.4,2097.7,0.94730524]
[1770490578257,0.002,2098.4,2097.8,1.19172466]
[1770490578661,4.76281196,2099.7,2097.9,0.94730524]
[1770490578960,1.00844276,2099.3,2097.8,2.1390299]
[1770490579158,1.0435343,2099.2,2097.8,2.1390299]
[1770490579883,1.00844276,2099.2,2097.8,2.1390299]
[1770490580182,1.00844276,2099.2,2097.8,1.19172466]
[1770490580377,1.19098661,2099.1,2097.9,0.94730524]
[1770490580688,2.19908904,2099.7,2097.9,0.97623763]
[1770490580891,1.00844276,2099.6,2097.9,0.97623763]
[1770490581585,1.00844276,2099.6,2098.3,0.94730524]
[1770490582364,2.20097564,2099.9,2098.5,0.94730524]
[1770490583974,1.00844276,2099.7,2098.4,1.19138391]
[1770490584170,1.00844276,2099.6,2098.4,1.07138391]
[1770490584490,1.00844276,2099.4,2098.1,2.1388595]
[1770490584674,1.00844276,2099.4,2098.2,0.94730524]
[1770490585482,1.1907597,2099.5,2098.2,0.94730524]
[1770490585991,0.002,2100.1,2098.2,0.97623763]
[1770490586289,1.19062938,2099.8,2098.2,0.97623763]
[1770490586496,4.76421701,2099.9,2098.4,0.94730524]
[1770490586971,1.19253288,2099.9,2098.6,0.94730524]
[1770490588180,2.20097564,2099.9,2098.6,0.94730524]
[1770490588491,0.002,2099.9,2098.8,0.94730524]
[1770490589065,0.002,2099.9,2098.8,0.97623763]
[1770490590371,0.002,2099.9,2098.8,0.94730524]
[1770490590598,1.00844276,2099.7,2098.6,4.76485443]
[1770490590795,0.03509154,2099.6,2098.6,5.71215967]
[1770490590967,1.00844276,2099.7,2098.6,5.71215967]
[1770490591169,1.19257563,2099.9,2098.7,0.94730524]
[1770490591364,0.002,2099.7,2098.7,0.94730524]
[1770490591691,1.01044276,2099.7,2098.6,4.76485443]
[1770490591878,1.0435343,2099.6,2098.6,4.76485443]
[1770490592274,1.0435343,2099.6,2098.6,1.19127037]
[1770490592484,1.1907597,2099.5,2098.5,4.76608148]
[1770490592811,0.03509154,2099.4,2098.5,4.76608148]
[1770490593093,1.19074157,2099.6,2098.6,0.94730524]
[1770490593493,1.19074157,2099.6,2098.5,4.76608148]
[1770490593803,1.00844276,2099.5,2098.5,4.76608148]
[1770490593975,1.0435343,2099.4,2098.5,4.76608148]
[1770490594406,1.00844276,2099.4,2098.5,4.76608148]
[1770490594612,1.22583311,2099.6,2098.5,0.001]
[1770490594795,1.22583311,2099.6,2098.5,0.94830524]
[1770490595100,1.19071203,2099.6,2098.5,0.94830524]
[1770490595670,1.22580357,2099.6,2098.5,0.94830524]
[1770490595895,1.01976325,2099.5,2098.5,0.001]
[1770490596076,0.03509154,2099.4,2098.5,0.001]
[1770490597990,1.19087314,2099.3,2098.5,0.001]
[1770490598299,1.01976325,2099.2,2098.5,0.001]
[1770490600282,1.19098661,2099.1,2098.5,0.001]
[1770490602001,1.01976325,2099.0,2098.5,0.001]
[1770490602198,1.19098661,2099.1,2098.5,0.001]
[1770490602380,1.01976325,2099.4,2098.5,0.001]
[1770490605013,2.21063639,2099.3,2098.6,0.001]
[1770490605184,0.002,2099.2,2098.6,0.001]
[1770490606196,0.002,2099.2,2098.6,1.00493358]
[1770490606385,0.002,2099.2,2098.6,0.001]
[1770490609928,0.002,2099.2,2098.6,1.00493358]
[1770490610288,1.19268437,2099.7,2098.6,1.00493358]
[1770490610523,0.002,2099.7,2098.8,1.00393358]
[1770490610728,0.002,2099.7,2099.0,1.00393358]
[1770490611813,1.01976325,2099.6,2098.6,0.001]
[1770490612110,1.05485479,2099.5,2098.6,0.001]
[1770490612900,1.04869564,2099.4,2098.6,0.001]
[1770490613089,0.02893239,2099.1,2098.6,0.001]
[1770490613420,1.01976325,2099.0,2098.6,0.001]
[1770490613807,1.1911001,2098.9,2098.6,0.001]
[1770490614003,2.21084869,2099.0,2098.6,0.001]
[1770490614411,1.01976325,2098.9,2098.6,0.001]
[1770490615815,2.2109201,2098.8,2097.8,1.19172466]
[1770490616110,1.01976325,2098.7,2097.7,1.19174995]
[1770490616710,1.01976325,2098.7,2097.6,0.001]
[1770490616887,1.01976325,2098.7,2097.7,1.19178031]
[1770490617087,1.01976325,2098.7,2097.6,1.1927988]
[1770490617313,1.01976325,2098.6,2097.6,0.001]
[1770490617497,1.01976325,2098.4,2097.6,0.001]
[1770490617697,2.21120394,2098.3,2097.6,0.001]
[1770490617915,1.01976325,2098.2,2097.6,0.001]
[1770490618117,1.01976325,2098.2,2096.9,4.76892453]
[1770490618499,1.01976325,2098.2,2098.0,0.001]
[1770490618700,1.01976325,2098.2,2096.9,4.76892453]
[1770490619027,1.01976325,2098.0,2096.3,0.24866599]
[1770490619317,0.02893239,2098.1,2096.3,0.24866599]
[1770490619318,1.01976325,2097.8,2096.7,1.19230757]
[1770490619511,1.01976325,2097.8,2096.9,0.001]
[1770490619695,1.01976325,2097.8,2096.6,1.19237383]
[1770490619898,1.01976325,2097.6,2096.3,1.00393358]
[1770490620491,1.01976325,2097.6,2096.2,4.77048974]
[1770490621002,4.86807668,2098.4,2096.3,1.00393358]
[1770490621311,1.19144069,2098.3,2096.8,1.03286597]
[1770490621511,1.01976325,2098.2,2096.8,0.02893239]
[1770490621726,1.01976325,2098.2,2096.7,1.00393358]
[1770490622014,1.01976325,2098.4,2096.9,1.00393358]
[1770490622217,1.05485479,2098.4,2096.9,1.00393358]
[1770490622397,1.01976325,2098.4,2096.9,1.00393358]
[1770490622722,1.01976325,2098.4,2096.9,1.03286597]
[1770490623108,1.19132713,2098.5,2096.9,1.03286597]
[1770490623453,2.21109038,2098.5,2097.2,0.02893239]
[1770490623628,1.01976325,2098.5,2097.2,1.03286597]
[1770490623798,1.19138391,2098.4,2097.3,2.19594235]
[1770490624117,2.21112809,2098.5,2097.3,2.19594235]
[1770490625829,1.01976325,2098.5,2097.3,2.19594235]
[1770490626029,1.19138391,2098.4,2097.3,2.19594235]
[1770490626623,1.01976325,2098.5,2097.4,0.99221593]
[1770490626833,0.03509154,2098.4,2097.4,0.99221593]
[1770490627030,0.95186035,2098.4,2097.3,1.19200877]
[1770490627609,0.03509154,2098.3,2097.3,1.19200877]
[1770490628934,2.14327191,2098.4,2097.2,5.76025102]
[1770490629426,0.98695189,2098.3,2097.2,5.76025102]
[1770490630132,0.95186035,2098.3,2097.2,4.76803509]
[1770490631108,1.19149747,2098.2,2097.1,0.001]
[1770490631330,1.19349747,2098.2,2097.1,0.001]
[1770490631518,0.96799041,2098.1,2097.1,0.001]
[1770490633022,0.96799041,2097.9,2097.1,0.001]
[1770490633228,2.15971507,2097.8,2097.1,0.001]
[1770490634526,0.96799041,2097.8,2097.1,0.001]